Cogmind - Beta 15 @@@ ROGUE MODE // 2025.05.23 @ 04:16:08 Player: BVrutally Odd Result: Destroyed by G-67 Veteran with Field Laser Performance ------------- Evolutions (6) 3000 Regions Visited (11) 2200 Robots Destroyed (371) 1855 Value Destroyed (13880) 13880 Prototype IDs (21) 420 Alien Tech Used (0) 0 Bonus (5293) 5293 TOTAL SCORE: 26648 Bonus ------- High Alert Combat Kills 4902 Follower Combat Kills 391 Cogmind --------- Core Integrity 0/1150 Matter 58/300 Energy 93/100 System Corruption 58% Temperature Cool (24) Movement Core (50) Location -4/Factory Parts ------- > --- POWER (2) -------- (None) > --- PROPULSION (5) --- (None) > --- UTILITY (8) ------ Advanced Signal Interpreter Advanced Targeting Computer Experimental Targeting Computer > --- WEAPON (4) ------- (None) > --- INVENTORY (5) ---- Energy Well (350) Weapon Cycler Makeshift ECM Suite Compact Tesla Bomb Launcher Compact Tesla Bomb Launcher Peak State ------------ > --- POWER ------------ Neutrino Core Light Antimatter Reactor > --- PROPULSION ------- Improved Medium Treads Armored Medium Treads Armored Medium Treads Armored Medium Treads Armored Medium Treads > --- UTILITY ---------- Advanced Cryofiber Web Advanced Heat Sink Huge Storage Unit Advanced Signal Interpreter Experimental Targeting Computer Experimental Targeting Computer Core Analyzer Improved Weapon Cycler > --- WEAPON ----------- Phase Gun Improved Heavy Machine Gun Improved KE Penetrator Enhanced Coil Gun > --- INVENTORY -------- Medium Treads Medium Treads Medium Treads Improved Medium Treads Armored Medium Treads Armored Medium Treads Armored Medium Treads Advanced Cryofiber Web Energy Well Advanced Targeting Computer Experimental Targeting Computer Weapon Cycler Improved Weapon Cycler Makeshift ECM Suite Improved Light Armor Plating Layered Light Armor Plating Medium Reactive Plating Graphene Brace Long-range Tractor Beam Field Laser Wave Gun Neutron Cannon Compact Tesla Bomb Launcher Compact Tesla Bomb Launcher Micro-nuke Launcher [Rating: 122] Favorites ----------- Power Reinforced Deuterium Engine Engine Reinforced Deuterium Engine Power Core Neutrino Core Reactor Fusion Reactor Propulsion Armored Treads Treads Armored Treads Leg Myomer Leg Utility Huge Storage Unit Device Improved Heat Sink Storage Huge Storage Unit Processor Experimental Targeting Computer Protection Hardened Heavy Armor Plating Weapon Enhanced Autogun Energy Gun Advanced Beam Rifle Energy Cannon Heavy Phase Cannon Ballistic Gun Enhanced Autogun Launcher Compact Tesla Bomb Launcher Build | -11 -10 -9 -9 -8 -8 -7 -6 -5 -5 -5 -4 ------- Run | Yrd Mat Mat Min Mat Sto Fac Fac Fac Upp Upp Fac Slots Evolved 12 | . . 2 . 2 . 2 2 2 . . 2 Power 1 | . . . . . . . . . . . 1 Propulsion 3 | . . . . . . 2 . . . . 1 Utility 6 | . . . . 2 . . 2 2 . . . Weapon 2 | . . 2 . . . . . . . . . Parts Attached 163 | 6 5 13 . 16 6 5 36 29 4 . 43 Power 14 | 1 . 1 . 1 1 1 1 2 . . 6 Engine 7 | 1 . 1 . 1 1 1 1 . . . 1 Core 3 | . . . . . . . . 1 . . 2 Reactor 4 | . . . . . . . . 1 . . 3 Propulsion 47 | 2 2 3 . 4 . 2 11 9 . . 14 Treads 39 | 2 2 3 . 4 . 2 10 9 . . 7 Leg 8 | . . . . . . . 1 . . . 7 Wheel . | . . . . . . . . . . . . Hover . | . . . . . . . . . . . . Flight . | . . . . . . . . . . . . Utility 49 | 1 3 2 . 6 1 2 12 11 1 . 10 Device 21 | . . . . 2 1 2 6 4 1 . 5 Storage 3 | 1 2 . . . . . . . . . . Processor 9 | . . . . . . . 2 5 . . 2 Hackware . | . . . . . . . . . . . . Protection 16 | . 1 2 . 4 . . 4 2 . . 3 Artifact . | . . . . . . . . . . . . Weapon 53 | 2 . 7 . 5 4 . 12 7 3 . 13 Energy Gun 8 | 1 . 2 . 1 . . . . 1 . 3 Energy Cannon 9 | . . 2 . . . . 2 4 1 . . Ballistic Gun 27 | 1 . 3 . 1 4 . 5 3 1 . 9 Ballistic Cannon . | . . . . . . . . . . . . Launcher 9 | . . . . 3 . . 5 . . . 1 Special Weapon . | . . . . . . . . . . . . Impact Weapon . | . . . . . . . . . . . . Slashing Weapon . | . . . . . . . . . . . . Piercing Weapon . | . . . . . . . . . . . . Special Melee Weapon . | . . . . . . . . . . . . Unidentified Prototypes 16 | . . 1 . 2 1 . 5 7 . . . Corrupted Parts 8 | . . . . 1 . . . . . . 7 System Corruption 39 | . . . . 3 . . . . . . 36 Parts Lost 81 | . . 3 . . . . 8 16 1 . 53 Power 6 | . . . . . . . . 1 . . 5 Propulsion 29 | . . 1 . . . . 1 8 . . 19 Utility 19 | . . 1 . . . . 3 3 . . 12 Weapon 27 | . . 1 . . . . 4 4 1 . 17 Highest Loss Streak 25 | . . 2 . . . . 2 5 1 . 25 To Critical Strikes 2 | . . . . . . . . 1 . . 1 Average Backups 21 | 3 9 18 25 23 22 22 23 23 20 22 19 Power . | . 1 1 1 . . . . . . . . Propulsion 6 | 2 5 6 9 9 8 6 7 6 6 6 4 Utility 7 | . . 5 7 5 6 8 9 7 8 10 9 Weapon 6 | . 1 5 8 8 8 8 7 7 6 6 5 Tool/Special . | . . . . . . . . . . . . Unused Backups 26 | . . . . 10 4 . 2 5 . . 5 Power 2 | . . . . 1 . . . . . . 1 Propulsion 10 | . . . . 5 2 . 2 1 . . . Utility 5 | . . . . 1 . . . . . . 4 Weapon 9 | . . . . 3 2 . . 4 . . . Tool/Special . | . . . . . . . . . . . . Average Slot Usage (%) 93 | . 98 99 100 93 90 91 90 94 99 100 90 Engine 6 | . 14 11 11 9 9 7 6 2 . . . Treads 23 | . 28 21 22 18 18 29 25 22 23 23 18 Device 8 | . . . . 9 9 7 12 11 17 17 12 Storage 7 | . 14 11 11 9 9 7 6 5 5 5 4 Processor 6 | . . . . . . . 4 17 23 23 20 Protection 7 | . 12 11 11 11 9 7 5 4 . . 1 Energy Gun 3 | . 14 19 . 8 2 . . . 2 . 2 Energy Cannon 4 | . . 8 11 . . . 4 8 13 11 2 Ballistic Gun 20 | . 14 15 33 26 33 30 21 13 5 11 12 Peak Build Rating 122 | 6 8 19 19 40 46 51 86 104 101 102 122 Average Rating 57 | 5 7 14 19 34 42 50 68 88 99 101 104 On Entrance 46 | . 6 8 19 19 38 44 50 77 90 101 102 Naked Turns . | . . . . . . . . . . . . Heaviest Build 147 | 14 92 107 105 118 126 128 142 147 130 126 137 Greatest Support 138 | 40 40 40 40 44 40 80 98 110 109 109 138 Greatest Overweight (x) 3 | . 2 2 2 2 3 1 2 2 1 1 3 Average Overweight (x) 1 | . 1 2 2 2 2 1 1 1 1 1 . Largest Inventory Capacity 25 | 8 25 25 25 25 25 25 25 25 25 25 25 Average Capacity 24 | 6 22 25 25 25 25 25 25 25 25 25 24 Most Carried 25 | 6 13 25 25 25 25 25 25 25 22 23 25 Average Carried 22 | 4 9 18 25 24 24 24 24 23 20 22 19 Final Capacity 25 | 8 25 25 25 25 25 25 25 25 25 25 5 Final Carried 25 | 6 13 25 25 25 25 25 25 23 22 23 5 Class Distribution -------------------- 33% | Tank 26% | Scavenger-Tank 23% | Scavenger-Gunner 9% | Mutant 6% | Gunner Dominant Class ---------------- Mutant | -10/Materials Tank | -9/Materials Scavenger-Tank | -9/Mines Tank | -8/Materials Tank | -8/Storage Tank | -7/Factory Scavenger-Tank | -6/Factory Scavenger-Gunner | -5/Factory Scavenger-Gunner | -5/Upper Caves Scavenger-Gunner | -5/Upper Caves Scavenger-Gunner | -4/Factory Resources | -11 -10 -9 -9 -8 -8 -7 -6 -5 -5 -5 -4 ----------- Run | Yrd Mat Mat Min Mat Sto Fac Fac Fac Upp Upp Fac Matter Collected 9280 | 272 176 142 55 847 463 502 3720 1645 164 . 1294 Remotely 648 | . . . . . . . . 314 . . 334 Salvage Created 19126 | 99 529 346 71 1447 581 691 6435 5439 183 . 3305 Parts 868 | 7 29 26 7 81 30 45 291 190 6 . 156 Haulers Intercepted 21 | . 2 1 . 2 5 1 3 6 . . 1 Recyclers Shooed 16 | 1 . . . 1 1 . 9 2 . . 2 Parts Field Recycled . | . . . . . . . . . . . . Retrieved Matter . | . . . . . . . . . . . . Parts Self-Destructed 6 | . . . . . . . . . 6 . . Prevented . | . . . . . . . . . . . . Kills | -11 -10 -9 -9 -8 -8 -7 -6 -5 -5 -5 -4 ------- Run | Yrd Mat Mat Min Mat Sto Fac Fac Fac Upp Upp Fac Combat Hostiles Destroyed 240 | . 12 10 3 23 4 10 77 55 4 . 42 Guns 133 | . 12 5 3 14 4 10 35 21 . . 29 Cannons 34 | . . 4 . . . . 15 7 4 . 4 AOE 51 | . . . . 9 . . 21 15 . . 6 Classes Destroyed 20 | 2 3 2 . 4 . 2 6 1 . . . Worker 35 | . . . . 2 1 2 13 8 . . 9 Builder 18 | . . . . 2 1 1 4 4 . . 6 Tunneler 7 | 1 . . 1 1 . 1 1 1 . . 1 Hauler 21 | . 2 1 . 2 5 1 3 6 . . 1 Recycler 30 | 1 1 . . 2 1 1 12 10 . . 2 Mechanic 6 | . . . . . . . 3 1 . . 2 Operator 6 | . . 1 . 1 1 1 1 1 . . . Watcher 8 | . . . . 3 . . 3 2 . . . Swarmer 42 | . 6 7 3 3 . 1 6 14 2 . . Saboteur 1 | . . . . . . . . 1 . . . Grunt 88 | . 6 . . 17 3 3 24 18 1 . 16 Brawler 6 | . . . . . . 1 2 1 . . 2 Duelist 2 | . . . . . . . 1 . . . 1 Protector 5 | . . . . . . . 4 1 . . . Sentry 26 | . . 3 . 2 1 1 13 2 1 . 3 Specialist 7 | . . . . . . . 7 . . . . Hunter 31 | . . . . . . . 9 11 . . 11 Programmer 23 | . . . . . . 4 7 5 . . 7 Heavy 7 | . . . . 1 . . 3 2 . . 1 Behemoth 2 | . . . . . . . 1 . . . 1 Best Kill Streak 17 | 2 6 4 3 8 5 4 17 13 4 . 16 Combat Bots Only 11 | . 5 4 3 7 3 3 10 11 4 . 8 Max Kills in Single Turn 6 | 1 1 2 1 6 1 2 5 3 1 . 4 Gunslinging 1 | . . . . . . . 1 . . . . Exploded 6 | . . . . 6 . . 3 3 . . 2 Melee . | . . . . . . . . . . . . Uniques/NPCs Destroyed . | . . . . . . . . . . . . Combat | -11 -10 -9 -9 -8 -8 -7 -6 -5 -5 -5 -4 -------- Run | Yrd Mat Mat Min Mat Sto Fac Fac Fac Upp Upp Fac Hostile Shots Fired 1990 | . 76 73 7 104 9 44 634 324 24 . 695 Missed 622 | . 19 24 2 28 6 19 230 76 5 . 213 Hits 1368 | . 57 49 5 76 3 25 404 248 19 . 482 Melee 7 | . . . . . . . . . . . 7 Projectile 1361 | . 57 49 5 76 3 25 404 248 19 . 475 Critical Strikes 49 | . 2 . 1 4 1 1 7 9 1 . 23 Actively Blocked 11 | . . . . . . . . . . . 11 Part Disruptions 5 | . . . . . . . 4 . . . 1 Damage Taken 22893 | . 585 488 38 1259 47 308 5328 5222 402 . 9216 Core 1886 | . 101 55 . 132 . 21 244 179 . . 1154 Absorbed by Shields 784 | . . . . . . . 784 . . . . Ignored by Resistances 409 | . . . . . . . . . . . 409 Core Remaining (%) 81 | 100 59 . 86 . 76 97 71 . . 82 . Volleys Fired 693 | 4 42 27 4 64 29 35 234 123 9 . 122 Largest 4 | 2 2 4 4 4 4 4 4 4 4 . 4 Hottest 359 | 70 70 150 137 140 134 100 240 245 359 . 240 Shots Fired 2250 | 8 84 69 13 243 117 128 827 410 26 . 325 Gun 1843 | 8 84 51 12 233 117 128 678 248 5 . 279 Cannon 342 | . . 18 1 2 . . 125 141 21 . 34 Launcher 65 | . . . . 8 . . 24 21 . . 12 Special . | . . . . . . . . . . . . Kinetic 1639 | 4 42 12 12 178 112 128 678 248 . . 225 Thermal 521 | 4 42 57 1 57 5 . 125 141 26 . 63 Explosive 35 | . . . . 6 . . 20 3 . . 6 Electromagnetic 55 | . . . . 2 . . 4 18 . . 31 Robot Hit Streak 28 | 3 11 13 3 19 7 8 19 23 7 . 28 Robot Miss Streak 6 | 1 5 6 2 4 2 3 6 3 2 . 5 Penetration Max 1 | . . . . . . . . 1 . . 1 Secondary Targets 14 | . 1 . 1 2 1 . 3 2 . . 4 Max Gunslinging Chain 1 | . 1 . 1 1 1 . 1 1 . . 1 Shots Hit Robots 1412 | 5 56 35 6 149 57 61 524 278 16 . 225 Core Hits 754 | 3 26 12 4 68 22 27 283 157 7 . 145 Critical Kills 17 | . 1 . . . . 1 3 7 . . 5 Critical Parts Destroyed 16 | . . . . . . . 4 5 . . 7 Critical Strikes 47 | . 5 1 . 4 . 1 7 12 1 . 16 Burn 12 | . 4 1 . 4 . . . . 1 . 2 Meltdown 9 | . . . . . . . 3 6 . . . Destroy 26 | . 1 . . . . 1 4 6 . . 14 Melee Attacks . | . . . . . . . . . . . . Impact . | . . . . . . . . . . . . Slashing . | . . . . . . . . . . . . Piercing . | . . . . . . . . . . . . Sneak Attacks . | . . . . . . . . . . . . Combat Hostiles . | . . . . . . . . . . . . Follow-up Attacks . | . . . . . . . . . . . . Damage Inflicted 41307 | 63 775 569 77 3246 1041 1369 14698 10240 539 . 8690 Guns 21530 | 63 775 281 77 2515 1041 1198 7613 3025 73 . 4869 Cannons 8416 | . . 288 . 42 . . 2907 3588 466 . 1125 Explosions 11281 | . . . . 689 . 171 4126 3606 . . 2689 Melee . | . . . . . . . . . . . . Ramming 80 | . . . . . . . 52 21 . . 7 Kinetic 19017 | 26 371 84 77 1795 1001 1198 7613 3025 . . 3827 Thermal 11820 | 37 404 485 . 762 40 171 3654 3843 539 . 1885 Explosive 5848 | . . . . 516 . . 2754 797 . . 1781 Electromagnetic 4542 | . . . . 173 . . 625 2554 . . 1190 Impact . | . . . . . . . . . . . . Slashing . | . . . . . . . . . . . . Piercing . | . . . . . . . . . . . . Highest Corruption 58 | . . . . 3 3 . 7 8 8 8 58 Average Corruption 7 | . . . . 3 3 . 4 6 8 8 18 Corruption Purged . | . . . . . . . . . . . . Corruption Blocked . | . . . . . . . . . . . . Effects 171 | . . . . . 24 . 64 19 23 2 39 Message Errors 37 | . . . . . 4 . 10 8 7 . 8 Matter Fused 37 | . . . . . 5 . 20 3 2 2 5 Heat Flow Errors 21 | . . . . . 5 . 7 3 3 . 3 Energy Discharges 14 | . . . . . 2 . 6 1 1 . 4 Parts Rejected 1 | . . . . . . . 1 . . . . Data Loss (minor) 17 | . . . . . 4 . 5 . 4 . 4 Data Loss (major) 11 | . . . . . 1 . 7 . 2 . 1 Misfires 11 | . . . . . 2 . 3 3 1 . 2 Alerts 2 | . . . . . . . . . 2 . . Misdirections 2 | . . . . . . . . . . . 2 Weapon Failures 18 | . . . . . 1 . 5 1 1 . 10 Overload Shots . | . . . . . . . . . . . . Overflow Damage 515 | . . . . 21 . 91 119 187 . . 97 Projectiles 98 | . . . . . . . 63 35 . . . Explosions 403 | . . . . 21 . 91 46 148 . . 97 Melee 14 | . . . . . . . 10 4 . . . Knockbacks . | . . . . . . . . . . . . Impact . | . . . . . . . . . . . . Kinetic . | . . . . . . . . . . . . Secondary . | . . . . . . . . . . . . Self-Inflicted Damage 314 | . . . . 6 . . 209 41 . . 58 Shots 12 | . . . . 1 . . 5 2 . . 4 Rammed 6 | . . . . . . . 4 1 . . 1 Targets Rammed 7 | . . . . . . . 4 2 . . 1 Kicked . | . . . . . . . . . . . . Crushed 1 | . . . . . . . . 1 . . . Highest Temperature 469 | 18 238 379 66 404 263 223 247 266 469 . 342 Average Temperature 95 | 10 75 163 41 88 72 85 61 90 307 . 131 Received Heat Transfer 3698 | . 195 36 . 648 18 66 909 601 126 . 1099 Effects 9 | . . 3 . 1 1 . 1 . . . 3 Energy Bleed 4 | . . 1 . 1 1 . 1 . . . . Interference 4 | . . 1 . . . . . . . . 3 Damage (minor) 1 | . . 1 . . . . . . . . . Siege Activations . | . . . . . . . . . . . . Martial Activations . | . . . . . . . . . . . . Shielding Activations . | . . . . . . . . . . . . Robots Disrupted 1 | . . . . . . . 1 . . . . Combat Hostiles 1 | . . . . . . . 1 . . . . Robots Corrupted 15 | . . . . . . . 4 8 . . 3 Combat Hostiles 14 | . . . . . . . 3 8 . . 3 Parts Fried 32 | . . . . . . . 9 18 . . 5 Impact Corruptions 2 | . . . . . . . 1 1 . . . Robots Melted 10 | . . 1 . . . . 3 6 . . . Combat Hostiles 8 | . . 1 . . . . 3 4 . . . Parts Melted 45 | 1 1 1 . 2 . . 9 28 1 . 2 Heat Transferred 15583 | 111 1480 1101 . 1702 74 100 3720 5184 470 . 1641 Parts Sabotaged 2 | . . . . . . . . . . . 2 Parts Stolen . | . . . . . . . . . . . . Parts Stripped . | . . . . . . . . . . . . Power Chain Reactions 4 | . . . . . . . 2 2 . . . Alert | -11 -10 -9 -9 -8 -8 -7 -6 -5 -5 -5 -4 ------- Run | Yrd Mat Mat Min Mat Sto Fac Fac Fac Upp Upp Fac Maximum Alert Level 5 | . . . . 1 1 . 5 5 . . 3 Low Security (%) 52 | 100 100 100 100 38 67 100 49 . . . . Level 1 12 | . . . . 61 32 . 8 . . . . Level 2 8 | . . . . . . . 4 8 . . 64 Level 3 13 | . . . . . . . 10 45 . . 35 Level 4 9 | . . . . . . . 25 27 . . . Level 5 3 | . . . . . . . 1 19 . . . High Security . | . . . . . . . . . . . . Max Security . | . . . . . . . . . . . . Peak Influence 2031 | 5 103 80 70 377 313 170 1708 2031 . . 950 Initial 835 | . . . . . 138 15 65 835 . . 522 Average 430 | . 26 20 8 187 171 47 568 1175 . . 662 Influence Increases 8573 | 10 330 278 75 762 593 431 2544 2012 125 . 1413 Destroy 0b10 Robot/C 4920 | . 240 200 60 480 280 200 1460 1080 80 . 840 Destroy 0b10 Robot/NC 690 | 10 15 10 5 65 55 35 220 170 . . 105 Destroy Leader 1170 | . 54 52 10 110 74 62 382 234 . . 192 Allied During Kill 144 | . . . . 10 134 . . . . . . Successful Hack 25 | . 6 . . 5 . . 14 . . . . Disable Machine 645 | . . 15 . 15 45 90 135 255 . . 90 Destroy Structure 634 | . . 1 . 47 5 29 138 228 . . 186 Partial Spotted 15 | . . . . . . . 15 . . . . Lose Combat Pursuer 330 | . 15 . . 30 . 15 180 45 45 . . Influence Decreases 7674 | 10 330 278 75 433 887 333 970 1698 1021 295 1344 Entered New Map 2423 | . . . . . 191 20 68 872 749 215 308 Time Decay 4057 | 10 326 268 75 433 446 313 672 666 262 80 506 Lost Part 790 | . . 10 . . . . 80 160 10 . 530 Lost Ally 254 | . 4 . . . 250 . . . . . . Purge Threat 150 | . . . . . . . 150 . . . . Squads Dispatched 75 | . 1 1 . 6 3 6 25 20 . . 13 Investigation 5 | . . 1 . 1 1 . 1 1 . . . Extermination 16 | . . . . . . 4 5 4 . . 3 Reinforcement 32 | . 1 . . 5 1 2 6 10 . . 7 Assault 13 | . . . . . . . 6 4 . . 3 Garrison 9 | . . . . . 1 . 7 1 . . . Intercept . | . . . . . . . . . . . . Searches Triggered . | . . . . . . . . . . . . Construction Impeded 9 | . . . . 1 . 1 1 3 . . 3 Haulers Reinforced 5 | . . . . . . . . 3 . . 2 Active Scanning Responses . | . . . . . . . . . . . . Cargo Convoy Interrupts 1 | . . . . . . . 1 . . . . Stealth | -11 -10 -9 -9 -8 -8 -7 -6 -5 -5 -5 -4 --------- Run | Yrd Mat Mat Min Mat Sto Fac Fac Fac Upp Upp Fac Distress Signals 20 | . 3 1 . 3 . . 6 6 . . 1 Communications Jammed . | . . . . . . . . . . . . Distress Signals . | . . . . . . . . . . . . Times Spotted 350 | . 20 12 3 32 18 13 108 87 4 . 53 Peak Tracking Total 11 | . 4 4 3 7 4 4 8 10 7 . 11 Tactical Retreats 15 | . 1 . . 2 . 1 8 2 1 . . Traps | -11 -10 -9 -9 -8 -8 -7 -6 -5 -5 -5 -4 ------- Run | Yrd Mat Mat Min Mat Sto Fac Fac Fac Upp Upp Fac Traps Triggered 7 | . . 1 . . . 2 1 3 . . . Indirectly 1 | . . . . . . . . 1 . . . Trap Hack Attempts . | . . . . . . . . . . . . Triggered . | . . . . . . . . . . . . Disarmed . | . . . . . . . . . . . . Reprogrammed . | . . . . . . . . . . . . Reused . | . . . . . . . . . . . . Traps Extracted . | . . . . . . . . . . . . Installed . | . . . . . . . . . . . . Triggered . | . . . . . . . . . . . . Machines | -11 -10 -9 -9 -8 -8 -7 -6 -5 -5 -5 -4 ---------- Run | Yrd Mat Mat Min Mat Sto Fac Fac Fac Upp Upp Fac Machines Disabled 47 | . . 1 . 1 3 6 9 17 . . 10 Max in Single Turn 6 | . . 1 . 1 1 6 4 5 . . 2 Garrison Access 1 | . . . . . 1 . . . . . . Machines Repaired . | . . . . . . . . . . . . Machines Dismantled . | . . . . . . . . . . . . Machines Sabotaged . | . . . . . . . . . . . . Overloaded Fab Kills . | . . . . . . . . . . . . Hacking | -11 -10 -9 -9 -8 -8 -7 -6 -5 -5 -5 -4 --------- Run | Yrd Mat Mat Min Mat Sto Fac Fac Fac Upp Upp Fac Machines Accessed 25 | . 4 2 1 2 3 3 6 3 . 1 . Terminals 18 | . 4 1 1 2 2 1 4 3 . . . Fabricators 1 | . . . . . . . 1 . . . . Repair Stations . | . . . . . . . . . . . . Recycling Units 2 | . . 1 . . . 1 . . . . . Scanalyzers . | . . . . . . . . . . . . Garrison Access 3 | . . . . . 1 1 1 . . . . Total Hacks 42 | . 11 4 3 3 6 3 8 3 . 1 . Successful 14 | . 4 . 1 1 2 1 3 1 . 1 . Failed 28 | . 7 4 2 2 4 2 5 2 . . . Catastrophic 9 | . 2 2 . 1 . 2 1 1 . . . Database Lockouts . | . . . . . . . . . . . . Manual 8 | . 3 . . . 3 . 1 1 . . . Terminals 33 | . 11 2 3 3 4 1 6 3 . . . Fabricators 1 | . . . . . . . 1 . . . . Repair Stations . | . . . . . . . . . . . . Recycling Units 3 | . . 2 . . . 1 . . . . . Scanalyzers . | . . . . . . . . . . . . Garrison Access 4 | . . . . . 2 1 1 . . . . Terminal Hacks 10 | . 3 . 1 1 1 . 2 1 . 1 . Prototype ID Bank 2 | . 1 . . . . . 1 . . . . Open Door 2 | . . . . . 1 . . . . 1 . Alert Level 1 | . . . . . . . . 1 . . . Unreport Threat 1 | . . . . . . . 1 . . . . Hauler Manifests 1 | . 1 . . . . . . . . . . Registered Components 1 | . 1 . . . . . . . . . . Zone Layout 2 | . . . 1 1 . . . . . . . Fabricator Hacks . | . . . . . . . . . . . . Repair Station Hacks . | . . . . . . . . . . . . Recycling Unit Hacks 1 | . . . . . . 1 . . . . . Retrieve Components 1 | . . . . . . 1 . . . . . Scanalyzer . | . . . . . . . . . . . . Garrison Access Hacks 1 | . . . . . 1 . . . . . . Seal Access 1 | . . . . . 1 . . . . . . Unauthorized Hacks 2 | . 1 . . . . . 1 . . . . Terminals 2 | . 1 . . . . . 1 . . . . Assimilate 1 | . 1 . . . . . . . . . . Search 1 | . . . . . . . 1 . . . . Fabricators . | . . . . . . . . . . . . Repair Stations . | . . . . . . . . . . . . Recycling Units . | . . . . . . . . . . . . Scanalyzers . | . . . . . . . . . . . . Garrison Access . | . . . . . . . . . . . . Data Cores Recovered 3 | . . 1 . . . 1 . 1 . . . Used . | . . . . . . . . . . . . Hacking Detections 17 | . 3 2 . 2 1 2 5 2 . . . Full Trace Events 1 | . . 1 . . . . . . . . . Feedback Events . | . . . . . . . . . . . . Feedback Blocked . | . . . . . . . . . . . . Robot Schematics Acquired . | . . . . . . . . . . . . Robots Built . | . . . . . . . . . . . . Authchips . | . . . . . . . . . . . . Time . | . . . . . . . . . . . . Total Robot Build Rating . | . . . . . . . . . . . . Part Schematics Acquired . | . . . . . . . . . . . . Parts Built . | . . . . . . . . . . . . Authchips . | . . . . . . . . . . . . Time . | . . . . . . . . . . . . Total Part Build Rating . | . . . . . . . . . . . . Parts Repaired . | . . . . . . . . . . . . Time . | . . . . . . . . . . . . Parts Recycled . | . . . . . . . . . . . . Recycled Matter . | . . . . . . . . . . . . Retrieved Matter . | . . . . . . . . . . . . Retrieved Components 1 | . . . . . . 1 . . . . . Parts Scanalyzed . | . . . . . . . . . . . . Part Schematics Acquired . | . . . . . . . . . . . . Parts Damaged . | . . . . . . . . . . . . Bothacking | -11 -10 -9 -9 -8 -8 -7 -6 -5 -5 -5 -4 ------------ Run | Yrd Mat Mat Min Mat Sto Fac Fac Fac Upp Upp Fac Used RIF Installer . | . . . . . . . . . . . . Robots Hacked . | . . . . . . . . . . . . Non-combat . | . . . . . . . . . . . . Combat . | . . . . . . . . . . . . Robot Hacks Applied . | . . . . . . . . . . . . Relay Couplers Released . | . . . . . . . . . . . . Fabnet Peak Effective % . | . . . . . . . . . . . . Robots Rewired . | . . . . . . . . . . . . Allies Hacked . | . . . . . . . . . . . . Hacks Repelled . | . . . . . . . . . . . . Allies | -11 -10 -9 -9 -8 -8 -7 -6 -5 -5 -5 -4 -------- Run | Yrd Mat Mat Min Mat Sto Fac Fac Fac Upp Upp Fac Total Allies 13 | . 1 . 2 . 10 . . . . . . Largest Group 10 | . 1 . 2 2 10 . . . . . . Highest-Rated Group 173 | . 10 . 55 55 173 . . . . . . Highest-Rated Ally 31 | . 10 . 31 31 29 . . . . . . Total Orders 1 | . . . . . 1 . . . . . . EXPLORE 1 | . . . . . 1 . . . . . . Ally Attacks 104 | . . . . 3 101 . . . . . . Total Damage 1313 | . . . . 65 1248 . . . . . . Kills 13 | . . . . 1 12 . . . . . . Allies Corrupted . | . . . . . . . . . . . . Allies Melted . | . . . . . . . . . . . . Intel | -11 -10 -9 -9 -8 -8 -7 -6 -5 -5 -5 -4 ------- Run | Yrd Mat Mat Min Mat Sto Fac Fac Fac Upp Upp Fac Active Infowar (turns) 1150 | . . . . . . 1040 108 . 1 . 1 Structural 1148 | . . . . . . 1040 108 . . . . Traps 1 | . . . . . . . . . . . 1 ECM 1 | . . . . . . . . . 1 . . Robot Analysis Total . | . . . . . . . . . . . . Derelict Logs Recovered 2 | . . . 1 . . . . . 1 . . Drone Launches 16 | . . . . . 16 . . . . . . Drone Recoveries 1 | . . . . . 1 . . . . . . Exploration | -11 -10 -9 -9 -8 -8 -7 -6 -5 -5 -5 -4 ------------- Run | Yrd Mat Mat Min Mat Sto Fac Fac Fac Upp Upp Fac Turns Passed 15314 | 116 1224 906 580 1986 1108 1813 2917 2558 579 165 1362 Spaces Moved 4943 | 56 399 233 178 531 250 666 908 885 216 67 554 Core 6 | 3 . . . . . . . . . . 3 Treads 4843 | 53 399 233 178 531 250 666 908 885 216 67 457 Legs 94 | . . . . . . . . . . . 94 Wheels . | . . . . . . . . . . . . Hover . | . . . . . . . . . . . . Flight . | . . . . . . . . . . . . Fastest Speed 50 | 50 160 320 320 305 330 250 238 235 247 247 50 Average Speed 257 | 154 265 320 320 311 382 250 246 238 247 247 170 Slowest Speed 410 | 160 320 320 320 330 410 250 330 330 247 247 330 Overloaded Moves . | . . . . . . . . . . . . Propulsion Burnouts . | . . . . . . . . . . . . Robots Hopped . | . . . . . . . . . . . . Potential Cave-ins . | . . . . . . . . . . . . Cave-ins Triggered . | . . . . . . . . . . . . Exploration Rate (%) 37 | 5 94 28 51 48 63 18 32 39 44 12 18 Regions Visited 11 Branch Regions 4 Pre-discovered Areas 1 | . . . 1 . . . . . . . . Known Exits Taken 4 | . . . . . . . 1 1 1 1 . Unknown Exits Taken 7 | 1 1 1 1 1 1 1 . . . . . Scrap Searched 4 | . . . 2 . . . . . 2 . . Spaces Dug 18 | . . . . . . . 13 5 . . . Terrain Destroyed 492 | . . . . 42 . 23 158 134 8 . 127 Melee . | . . . . . . . . . . . . Projectile 130 | . . . . . . . 34 43 8 . 45 AOE 362 | . . . . 42 . 23 124 91 . . 82 Terrain Rammed . | . . . . . . . . . . . . Walls Destroyed . | . . . . . . . . . . . . Machines Disabled . | . . . . . . . . . . . . Actions | -11 -10 -9 -9 -8 -8 -7 -6 -5 -5 -5 -4 --------- Run | Yrd Mat Mat Min Mat Sto Fac Fac Fac Upp Upp Fac Total 6544 | 75 481 346 181 742 380 786 1310 1152 245 67 779 Wait 457 | 4 31 53 . 84 59 73 79 48 11 . 15 Move 4932 | 55 398 232 177 530 249 665 907 884 215 66 554 Hop . | . . . . . . . . . . . . Pick Up 103 | 6 4 14 . 17 9 2 12 27 2 1 9 Fast Attach 42 | 6 2 3 . 2 5 . 7 . . . 17 Attach 72 | . . 5 . 3 . 2 11 19 3 . 29 Detach 7 | . . 1 . . 2 . 1 . . . 3 Swap 125 | . 3 6 . 17 2 3 37 32 5 . 20 Drop 91 | . 1 5 . 25 14 2 18 17 . . 9 Fire 693 | 4 42 27 4 64 29 35 234 123 9 . 122 Melee . | . . . . . . . . . . . . Ram . | . . . . . . . . . . . . Kick . | . . . . . . . . . . . . Crush 7 | . . . . . . . 4 2 . . 1 Escape Stasis 4 | . . . . . . 4 . . . . . Rewire 4 | . . . . . 4 . . . . . . Trap . | . . . . . . . . . . . . Miscellaneous 7 | . . . . . 7 . . . . . . Route ------- -11/Scrapyard -10/Materials (discovered 5 exits: *Mat x3 / [*Min] / [*Sub]) -9/Materials -9/Mines -8/Materials (discovered 3 exits: *Fac / *Sto x2) -8/Storage -7/Factory (discovered 2 exits: *Fac / [*Low]) -6/Factory (discovered 2 exits: *Fac / *Low) -5/Factory (discovered 2 exits: *Upp x2) -5/Upper Caves -5/Upper Caves -4/Factory (discovered 2 exits: *Upp / [*Arm]) History --------- Turn | Location | Event 6 | -11/Scrapyard | Discovered new exit (range 15) 117 | -11/Scrapyard | Entered Materials 182 | -10/Materials | Discovered new exit (range 16) 301 | -10/Materials | Build established: Mutant 493 | -10/Materials | Discovered new exit (range 16) 915 | -10/Materials | Discovered new exit (range 11) 1030 | -10/Materials | Discovered new exit (range 6) 1274 | -10/Materials | Discovered new exit (range 16) 1341 | -10/Materials | Entered another Materials area 1341 | -9/Materials | Evolved 2 slots: Weapon x2 1634 | -9/Materials | Build established: Tank 2231 | -9/Materials | Discovered new exit (range 6) 2247 | -9/Materials | Entered Mines 2273 | -9/Mines | Build established: Scavenger-Tank 2568 | -9/Mines | Learned location of Zion (-7) 2802 | -9/Mines | Discovered new exit (range 9) 2827 | -9/Mines | Entered Materials 2827 | -8/Materials | Accompanied by 2 allies 2827 | -8/Materials | Evolved 2 slots: Utility x2 2832 | -8/Materials | Led the pair of lost Derelicts to an unsafe place 3454 | -8/Materials | Build established: Tank 3510 | -8/Materials | Destroyed 7 combat bots 4283 | -8/Materials | Discovered new exit (range 14) 4329 | -8/Materials | Discovered new exit (range 7) 4383 | -8/Materials | Discovered new exit (range 12) 4813 | -8/Materials | Entered Storage 4911 | -8/Storage | Assisted by bots powering up and referring to "LRC-V3" 4969 | -8/Storage | Garrison activated, responded to threat 5086 | -8/Storage | Lost 6 allies 5711 | -8/Storage | Discovered new exit (range 16) 5921 | -8/Storage | Entered Factory 5921 | -7/Factory | Evolved 2 slots: Propulsion x2 6203 | -7/Factory | Discovered new exit (range 7) 6966 | -7/Factory | Discovered new exit (range 12) 7734 | -7/Factory | Entered another Factory area 7734 | -6/Factory | Evolved 2 slots: Utility x2 7796 | -6/Factory | Garrison activated, responded to threat 8135 | -6/Factory | Build established: Scavenger-Tank 8164 | -6/Factory | Spotted B-75 Beast 8202 | -6/Factory | Destroyed B-75 Beast 8504 | -6/Factory | Discovered new exit (range 9) 8555 | -6/Factory | Identified exit to Lower Caves 8641 | -6/Factory | Found Prototype Processor 8641 | -6/Factory | Identified Exp. Targeting Computer 8648 | -6/Factory | Found Exp. Targeting Computer 8656 | -6/Factory | Garrison activated, responded to threat 9479 | -6/Factory | Destroyed 8 combat bots 9541 | -6/Factory | Cargo convoy interrupted 9573 | -6/Factory | Found Prototype Launcher 9573 | -6/Factory | Identified Com. Tesla Bomb Launcher 9577 | -6/Factory | Destroyed 10 combat bots 9619 | -6/Factory | Found Com. Tesla Bomb Launcher 9834 | -6/Factory | First assault squad dispatched 9858 | -6/Factory | Garrison activated, responded to threat 10598 | -6/Factory | Discovered new exit (range 7) 10638 | -6/Factory | Identified exit to Factory 10651 | -6/Factory | Entered another Factory area 10651 | -5/Factory | Evolved 2 slots: Utility x2 10654 | -5/Factory | Destroyed 7 combat bots 10898 | -5/Factory | Build established: Scavenger-Gunner 11444 | -5/Factory | Lost 5 parts (2n1u2w) 11851 | -5/Factory | First assault squad dispatched 12021 | -5/Factory | Discovered new exit (range 6) 12033 | -5/Factory | Identified exit to Upper Caves 12244 | -5/Factory | Destroyed 9 combat bots 12245 | -5/Factory | Lost 3 parts (2n1u) 12391 | -5/Factory | Found Exp. Targeting Computer 12397 | -5/Factory | Found Exp. Targeting Computer 12469 | -5/Factory | Build established: Gunner 13135 | -5/Factory | Discovered exit to Upper Caves (range 7) 13183 | -5/Factory | Garrison activated, responded to threat 13209 | -5/Factory | Entered Upper Caves 13215 | -5/Upper Caves | Destroyed 11 combat bots 13333 | -5/Upper Caves | Learned Factory trap positions 13431 | -5/Upper Caves | Attracted the attention of an 0b10 base 13462 | -5/Upper Caves | Build established: Scavenger-Gunner 13746 | -5/Upper Caves | Discovered new exit (range 6) 13786 | -5/Upper Caves | Identified exit to Upper Caves 13788 | -5/Upper Caves | Entered another Upper Caves area 13792 | -5/Upper Caves | Encountered a Warlord checkpoint 13872 | -5/Upper Caves | Discovered new exit (range 14) 13907 | -5/Upper Caves | Identified exit to Factory 13953 | -5/Upper Caves | Entered Factory 13953 | -4/Factory | Evolved 2 slots: Power x1, Propulsion x1 13954 | -4/Factory | Loaded intel: 101 trap records 14453 | -4/Factory | First assault squad dispatched 14534 | -4/Factory | Lost 3 parts (1n2w) 14539 | -4/Factory | Discovered new exit (range 13) 14559 | -4/Factory | Identified exit to Upper Caves 14684 | -4/Factory | Spotted B-86 Titan 14810 | -4/Factory | Destroyed B-86 Titan 14900 | -4/Factory | System corruption reached 10% 14966 | -4/Factory | System corruption reached 30% 14974 | -4/Factory | Lost 25 parts (2p10n5u8w) 15028 | -4/Factory | Core integrity fell below 50% 15064 | -4/Factory | Lost 3 parts (1p2n) 15240 | -4/Factory | Discovered new exit (range 12) 15291 | -4/Factory | Core integrity fell below 20% 15315 | -4/Factory | Destroyed by G-67 Veteran with Field Laser Last Messages --------------- 15305_ Coil Gun destroyed. 15306_ K-01 Serf collects debris. 15306_ U-05 Engineer lays Concrete. 15307_ System corrupted: Heat flow error (+104). 15307_ Dropped Huge Storage Unit. 15307_ U-05 Engineer lays Concrete. 15309_ Graphene Brace destroyed. 15309_ Acquired Railgun. 15310_ K-01 Serf collects debris. 15311_ System corrupted: Railgun jammed. 15311_ Slug penetrates T-07 Excavator. 15311_ T-07 Excavator sends out distress signal. 15312_ Critical hit (Burn: +50). 15312_ Railgun destroyed. 15313_ K-01 Serf collects debris. 15314_ Dropped Railgun. 15315_ ALERT: Potential suspicious activity detected, Programmers report to Factory Zone 4X. 15315_ Slug penetrates Machine. Map ----- +----------------------------------------------------+ | #??????# + """" #???# | | ###########??????# # """" ! #???# """"""""" | | #/ #??????# # """" #???# " [!|"* | | # #??????# # """" #???# " % % = | | # #??????# # ! #???# " * = ""#+### | | + ? #??????# ############## " "" ### | | #?""" ??? #??????# ^ " = "" #?# | | #??T "??????????###?????########""""""""""# #?# | | #???" ""?????????????????????? " # #?# | | ????? ?????????????????????# / ### #### #?# | | ####??##+????????????????????# #?###??# #?# | | #???# #???????????????????# #??????# #?# | | " ]#???# #???????????????????# #??????####### | | " #???# #???????????????????# !#??????????# | | " #???# #???????????????????########??????????# | | ==#???# #?????????????????????????????????????# | | "*%#??## ##????????????????????????????????????# | | "!=#### #??????##+#+########?????????????????# | | "[%+ " #?"""""# #"""""#?????????????????# " | | **#### #?" "# # "#?????????????????# " | | ####??## ###" "#?????????????????# " | | ? ???# #?# !< #?????????????????# " | | ? "???# #?# =% #?????????????????##? | | ? "???# #?# *![ #???????????????????? | | ? "???# #?# "#%= #" #???????????????????? | | ? ???# #?#" "##[%=##"@* "#???????????????????? | | ?" "???# #?#"" =%= "!!""#???????????????????? | | ?" ????# #?" [[ [=!=%!!["#???????????????????? | | ?? ????# #?#"[[ u =%!=g![["#???????????????????? | | ?? ????# #?#"[[" *!!h*"[["#?????????????#?????? | | ?? ????# #??""""" k[g=%!"""""#???????????? #?????? | | ???????# #????####;///########??????????? #?????? | | ?##????# #???????# =!=##??????????????? #?????? | | ?#"##??# ######### !%%################# ##????? | | ?# ?# = ^ #????? | | ?# ?# ^ #????? | | ?# # ^ #????? | | ?#"" # ^ #????? | | ?#"" + ^ #????? | | ?#"T # #### #### ###+####### ######+#??????? | | ?#"" # #??# #??# # ????# #?????????????? | | ?#"" ?# #??#?#??# # """ ??# #?????????????? | | ?# ?# #???????# # """ ## #?????????????? | | ?#######+####+#### # """ ## #?????????????? | | ?# #% # ##!#?????????????? | | ?# """" " """""" # # """ ## #?????????????? | | ?# """"" """" " # # ""???##[#?????????????? | | ?# """""" """ " # # "?????# #?????????????? | | ?# " """" ! # # ?????# #?????????????? | | ?# | ! + #####?????# #?????????????? | +----------------------------------------------------+ Best States ------------- Heat Dissipation 130 Energy Generation 35 Energy Capacity 480 Matter Stores 300 Matter Capacity 300 Sight Range 16 Terrain Scan Density 10 Base Temperature (-) 200 Armor Coverage 600 Resistance: KI 30 Weapon Cycling 20 Evasion (%) 45 Targeting Accuracy 24 Core Analysis 6 Recoil Reduction 5 Item Schematics ----------------- None Robot Schematics ------------------ None Fabricated ------------ Nothing Repaired ---------- Nothing Alien Tech Used ----------------- None Achievements -------------- None Challenges ------------ None Game ------ Seed AlloyThrowingBeam Manual? 0 Play Time 01:35:40 Cumulative 299.7 hours Start 2025.05.23 @ 01:24:55 End 2025.05.23 @ 04:16:08 Sessions 5 Manual Loads 0 Difficulty Rogue Special Mode None Game No. 141 Rogue 78 Adventurer 16 Explorer 47 Win Type - Total 39 Types 22/5/5/1/0/1/2/1/1/1 Lore% 89 Gallery% 87 Achievement% 83 Wizard Run 0 Options --------- Layout 2 ASCII 0 Keyboard 0 Movement Mouse Keybinds 0 Fullscreen 1 Font 32/Tamsyn Map View 50x44 Zoom Use 0% Tactical HUD 1 Map Filters NONE Filters NONE Steam 1 RUN: b1a98330-37ac-4ec7-af29-f1b26e27fdbd